Cogmind - Beta 14 @@@ ROGUE MODE // 2024.09.03 @ 19:38:37 Player: Coronach Result: Self-destructed Performance ------------- Evolutions (0) 0 Regions Visited (3) 600 Robots Destroyed (34) 170 Value Destroyed (785) 785 Prototype IDs (16) 320 Alien Tech Used (0) 0 Bonus (76) 76 TOTAL SCORE: 1951 Bonus ------- Follower Combat Kills 76 Cogmind --------- Core Integrity 40/250 Matter 300/300 Energy 265/265 System Corruption 0% Temperature Cool (0) Movement Walking (200) Ox1 Location -9/Recycling Parts ------- > --- POWER (1) -------- Improved Ion Engine > --- PROPULSION (2) --- Cargo Legs > --- UTILITY (2+2) ---- Large Storage Unit Terrain Scanner Scrap Shield (++) > --- WEAPON (2) ------- Subdweller Beam Cannon Battle Cannon > --- INVENTORY (15) --- Light Ion Engine Subdweller Monowheel Subdweller Monowheel Scrap Engine Humpback Subdweller Optics Cobbler Unit V3-11A's Pendant Mini Grenade Launcher Makeshift Axe Scrap Shield Fragment (49) Peak State ------------ > --- POWER ------------ Subdweller Power Source > --- PROPULSION ------- Cargo Legs > --- UTILITY ---------- Large Storage Unit Scrap Shield V3-11A's Pendant > --- WEAPON ----------- Mace Makeshift Axe > --- INVENTORY -------- Subdweller Power Source Spiked Treads Compact Wheel Subdweller Monowheel Subdweller Monowheel Medium Storage Unit Subdweller Optics Terrain Scanner Seismic Detector Light Armor Plating Cobbler Unit Subdweller Machine Gun Subdweller Machine Gun Mini Grenade Launcher [Rating: 34] Favorites ----------- Power Ion Engine Engine Ion Engine Propulsion Compact Wheel Treads Light Treads Leg Cargo Legs Wheel Compact Wheel Utility Large Storage Unit Device Terrain Scanner Storage Large Storage Unit Processor Signal Interpreter Protection Scrap Shield Weapon Makeshift Axe Energy Gun Heavy EM Pulse Gun Energy Cannon Subdweller Beam Cannon Ballistic Gun Improved Assault Rifle Ballistic Cannon Battle Cannon Launcher Mini Grenade Launcher Impact Weapon Mace Slashing Weapon Makeshift Axe Build | -11 -10 -10 -9 ------- Run | Yrd Mat Sub Rec Slots Evolved . | . . . . Power . | . . . . Propulsion . | . . . . Utility . | . . . . Weapon . | . . . . Parts Attached 59 | 4 18 34 3 Power 6 | 1 1 2 2 Engine 6 | 1 1 2 2 Core . | . . . . Reactor . | . . . . Propulsion 7 | 2 2 3 . Treads 3 | 2 . 1 . Leg 1 | . . 1 . Wheel 3 | . 2 1 . Hover . | . . . . Flight . | . . . . Utility 24 | 1 5 17 1 Device 17 | 1 2 13 1 Storage 2 | . 1 1 . Processor 1 | . 1 . . Hackware . | . . . . Protection 4 | . 1 3 . Artifact . | . . . . Weapon 22 | . 10 12 . Energy Gun 4 | . 1 3 . Energy Cannon 3 | . 2 1 . Ballistic Gun 6 | . 4 2 . Ballistic Cannon 2 | . 1 1 . Launcher 1 | . . 1 . Special Weapon . | . . . . Impact Weapon 4 | . 2 2 . Slashing Weapon 2 | . . 2 . Piercing Weapon . | . . . . Special Melee Weapon . | . . . . Unidentified Prototypes 2 | . 1 1 . Parts Lost 4 | . 2 2 . Power 1 | . . 1 . Propulsion 2 | . 1 1 . Utility 1 | . 1 . . Weapon . | . . . . Highest Loss Streak 2 | . 1 2 . To Critical Strikes 1 | . 1 . . Average Slot Usage (%) 87 | . 98 86 77 Engine 11 | . 14 10 11 Treads 7 | . 17 4 . Leg 4 | . . 4 11 Wheel 8 | . 10 10 . Device 10 | . 7 11 11 Storage 12 | . 14 12 11 Protection 5 | . 3 4 11 Energy Gun 1 | . . 1 . Energy Cannon 4 | . 8 . 11 Ballistic Gun 6 | . 11 5 . Ballistic Cannon 4 | . 4 1 11 Impact Weapon 4 | . 3 7 . Slashing Weapon 4 | . . 9 . Peak Build Rating 34 | 9 12 34 32 Average Rating 19 | 7 8 20 29 On Entrance 14 | 6 9 12 32 Naked Turns . | . . . . Heaviest Build 57 | 13 34 57 57 Greatest Support 55 | 40 40 55 55 Greatest Overweight (x) 1 | . 1 1 1 Average Overweight (x) . | . . . . Largest Inventory Capacity 15 | 8 15 15 15 Average Capacity 13 | 8 9 14 15 Most Carried 15 | 6 15 15 15 Average Carried 12 | 3 8 13 14 Final Capacity 15 | 8 15 15 15 Final Carried 15 | 3 15 15 14 Class Distribution -------------------- 97% | Mutant Dominant Class ---------------- Mutant | -10/Materials Mutant | -10/Subcaves Mutant | -9/Recycling Resources | -11 -10 -10 -9 ----------- Run | Yrd Mat Sub Rec Matter Collected 989 | 230 319 400 40 Remotely . | . . . . Salvage Created 984 | 16 682 172 114 Parts 72 | 3 54 10 5 Haulers Intercepted 2 | . 2 . . Recyclers Shooed . | . . . . Parts Field Recycled . | . . . . Retrieved Matter . | . . . . Parts Self-Destructed 12 | . . 12 . Prevented . | . . . . Kills | -11 -10 -10 -9 ------- Run | Yrd Mat Sub Rec Combat Hostiles Destroyed 27 | . 17 8 2 Melee 3 | . . 3 . Guns 8 | . 6 2 . Cannons 12 | . 11 . 1 AOE 3 | . . 3 . Classes Destroyed 11 | 1 6 2 2 Worker 1 | . 1 . . Tunneler 1 | 1 . . . Hauler 2 | . 2 . . Recycler 1 | . 1 . . Turret 1 | . . 1 . Watcher 1 | . 1 . . Swarmer 12 | . 6 6 . Grunt 12 | . 11 1 . Sentry 1 | . . . 1 Subdweller 1 | . . 1 . Scrapper 1 | . . . 1 Best Kill Streak 7 | 1 7 3 1 Combat Bots Only 6 | . 6 3 1 Max Kills in Single Turn 2 | 1 1 2 1 Gunslinging . | . . . . Exploded 2 | . . 2 . Melee 1 | . . 1 . Uniques/NPCs Destroyed . | . . . . Combat | -11 -10 -10 -9 -------- Run | Yrd Mat Sub Rec Hostile Shots Fired 149 | . 90 46 13 Missed 48 | . 23 24 1 Damage Taken 1207 | . 698 243 266 Core 210 | . 145 65 . Absorbed by Shields . | . . . . Core Remaining (%) 100 | 100 . . . Volleys Fired 64 | 2 51 9 2 Largest 2 | 2 2 2 2 Hottest 119 | 60 95 99 119 Shots Fired 125 | 4 101 16 4 Gun 59 | 4 44 11 . Cannon 64 | . 57 3 4 Launcher 2 | . . 2 . Special . | . . . . Kinetic 67 | 2 54 9 2 Thermal 49 | 2 42 3 2 Explosive 2 | . . 2 . Electromagnetic 7 | . 5 2 . Robot Hit Streak 13 | 2 13 4 4 Robot Miss Streak 5 | 1 5 2 . Penetration Max . | . . . . Secondary Targets . | . . . . Shots Hit Robots 85 | 3 67 12 3 Core Hits 41 | 2 28 10 1 Critical Kills 2 | . 1 . 1 Critical Parts Destroyed . | . . . . Critical Strikes 2 | . 1 . 1 Meltdown 1 | . . . 1 Smash 1 | . 1 . . Melee Attacks 62 | . 10 52 . Impact 36 | . 10 26 . Slashing 26 | . . 26 . Piercing . | . . . . Sneak Attacks 1 | . 1 . . Combat Hostiles . | . . . . Follow-up Attacks 1 | . . 1 . Damage Inflicted 1663 | 28 1113 451 71 Guns 494 | 28 383 83 . Cannons 670 | . 567 32 71 Explosions 147 | . . 147 . Melee 349 | . 160 189 . Ramming 3 | . 3 . . Kinetic 616 | 7 517 77 15 Thermal 501 | 21 386 38 56 Explosive 147 | . . 147 . Electromagnetic 47 | . 47 . . Impact 160 | . 160 . . Slashing 189 | . . 189 . Piercing . | . . . . Highest Corruption . | . . . . Average Corruption . | . . . . Corruption Purged . | . . . . Corruption Blocked . | . . . . Overload Shots . | . . . . Overflow Damage 42 | . 13 29 . Projectiles . | . . . . Explosions . | . . . . Melee 42 | . 13 29 . Knockbacks 2 | . 1 1 . Impact . | . . . . Kinetic 2 | . 1 1 . Secondary . | . . . . Self-Inflicted Damage . | . . . . Shots . | . . . . Rammed . | . . . . Targets Rammed 1 | . 1 . . Kicked . | . . . . Crushed 1 | . 1 . . Highest Temperature 242 | 20 242 2 84 Average Temperature 93 | 15 102 2 35 Received Heat Transfer 535 | . 309 57 169 Siege Activations . | . . . . Robots Corrupted . | . . . . Combat Hostiles . | . . . . Parts Fried 1 | . 1 . . Impact Corruptions 1 | . 1 . . Robots Melted 1 | . . . 1 Combat Hostiles 1 | . . . 1 Parts Melted 5 | . . . 5 Heat Transferred 976 | 50 814 50 62 Parts Sabotaged . | . . . . Parts Stolen . | . . . . Parts Stripped . | . . . . Power Chain Reactions . | . . . . Alert | -11 -10 -10 -9 ------- Run | Yrd Mat Sub Rec Peak Influence 254 | 5 254 . 72 Initial 31 | . 3 . 31 Average 74 | 3 115 . 22 Maximum Alert Level 1 | . 1 . . Low Security (%) 97 | 100 95 . 100 Level 1 2 | . 4 . . Level 2 . | . . . . Level 3 . | . . . . Level 4 . | . . . . Level 5 . | . . . . High Security . | . . . . Max Security . | . . . . Squads Dispatched 3 | . 3 . . Investigation 2 | . 2 . . Extermination . | . . . . Reinforcement 1 | . 1 . . Assault . | . . . . Garrison . | . . . . Intercept . | . . . . Searches Triggered . | . . . . Construction Impeded . | . . . . Haulers Reinforced . | . . . . Active Scanning Responses . | . . . . Cargo Convoy Interrupts . | . . . . Stealth | -11 -10 -10 -9 --------- Run | Yrd Mat Sub Rec Distress Signals . | . . . . Communications Jammed . | . . . . Distress Signals . | . . . . Times Spotted 46 | . 21 22 3 Peak Tracking Total 6 | . 4 6 3 Tactical Retreats 2 | . . 2 . Traps | -11 -10 -10 -9 ------- Run | Yrd Mat Sub Rec Traps Triggered 2 | . 2 . . Indirectly . | . . . . Trap Hack Attempts . | . . . . Triggered . | . . . . Disarmed . | . . . . Reprogrammed . | . . . . Reused . | . . . . Traps Extracted . | . . . . Installed . | . . . . Triggered . | . . . . Machines | -11 -10 -10 -9 ---------- Run | Yrd Mat Sub Rec Machines Disabled 4 | . 1 2 1 Max in Single Turn 1 | . 1 1 . Machines Repaired . | . . . . Machines Dismantled . | . . . . Machines Sabotaged . | . . . . Overloaded Fab Kills . | . . . . Hacking | -11 -10 -10 -9 --------- Run | Yrd Mat Sub Rec Machines Accessed 23 | . 8 2 13 Terminals 11 | . 6 . 5 Fabricators . | . . . . Repair Stations . | . . . . Recycling Units 8 | . 2 . 6 Scanalyzers . | . . . . Garrison Access . | . . . . Total Hacks 108 | . 30 14 64 Successful 77 | . 13 14 50 Failed 31 | . 17 . 14 Catastrophic 2 | . 2 . . Database Lockouts . | . . . . Manual 61 | . 26 . 35 Terminals 43 | . 24 . 19 Fabricators . | . . . . Repair Stations . | . . . . Recycling Units 25 | . 6 . 19 Scanalyzers . | . . . . Garrison Access . | . . . . Terminal Hacks 44 | . 1 14 29 Record 38 | . . 13 25 Prototype ID Bank 2 | . 1 . 1 Terminal Index 1 | . . . 1 Derelict Proto ID Bank 1 | . . 1 . Release Object 2 | . . . 2 Fabricator Hacks . | . . . . Repair Station Hacks . | . . . . Recycling Unit Hacks . | . . . . Scanalyzer . | . . . . Garrison Access Hacks . | . . . . Unauthorized Hacks 33 | . 12 . 21 Terminals 17 | . 9 . 8 Track 1 | . . . 1 Assimilate 1 | . 1 . . Botnet 4 | . 2 . 2 Operators 1 | . 1 . . Skim 10 | . 5 . 5 Fabricators . | . . . . Repair Stations . | . . . . Recycling Units 16 | . 3 . 13 Monitor 1 | . . . 1 Reject 7 | . 1 . 6 Recyclers 2 | . 1 . 1 Mask 6 | . 1 . 5 Scanalyzers . | . . . . Garrison Access . | . . . . Data Cores Recovered . | . . . . Used . | . . . . Hacking Detections 15 | . 7 . 8 Full Trace Events . | . . . . Feedback Events . | . . . . Feedback Blocked . | . . . . Robot Schematics Acquired . | . . . . Robots Built . | . . . . Authchips . | . . . . Time . | . . . . Total Robot Build Rating . | . . . . Part Schematics Acquired . | . . . . Parts Built . | . . . . Authchips . | . . . . Time . | . . . . Total Part Build Rating . | . . . . Parts Repaired . | . . . . Time . | . . . . Parts Recycled . | . . . . Recycled Matter . | . . . . Retrieved Matter . | . . . . Retrieved Components . | . . . . Parts Scanalyzed . | . . . . Part Schematics Acquired . | . . . . Parts Damaged . | . . . . Bothacking | -11 -10 -10 -9 ------------ Run | Yrd Mat Sub Rec Used RIF Installer . | . . . . Robots Hacked . | . . . . Non-combat . | . . . . Combat . | . . . . Robot Hacks Applied . | . . . . Relay Couplers Released . | . . . . Fabnet Peak Effective % . | . . . . Robots Rewired . | . . . . Allies Hacked . | . . . . Hacks Repelled . | . . . . Allies | -11 -10 -10 -9 -------- Run | Yrd Mat Sub Rec Total Allies 5 | . . 5 . Largest Group 5 | . . 5 2 Highest-Rated Group 95 | . . 95 38 Highest-Rated Ally 19 | . . 19 19 Total Orders . | . . . . Ally Attacks 35 | . . 15 20 Total Damage 505 | . . 186 319 Kills 5 | . . 3 2 Allies Corrupted . | . . . . Allies Melted . | . . . . Intel | -11 -10 -10 -9 ------- Run | Yrd Mat Sub Rec Robot Analysis Total . | . . . . Derelict Logs Recovered . | . . . . Drone Launches . | . . . . Drone Recoveries . | . . . . Exploration | -11 -10 -10 -9 ------------- Run | Yrd Mat Sub Rec Turns Passed 5147 | 31 1361 2701 1054 Spaces Moved 3223 | 12 784 1886 541 Core . | . . . . Treads 538 | 12 361 165 . Legs 1247 | . . 706 541 Wheels 1438 | . 423 1015 . Hover . | . . . . Flight . | . . . . Fastest Speed 100 | 160 100 100 130 Average Speed 139 | 160 132 128 189 Slowest Speed 260 | 160 160 260 200 Overloaded Moves . | . . . . Propulsion Burnouts . | . . . . Robots Hopped . | . . . . Cave-ins Triggered . | . . . . Exploration Rate (%) 69 | 2 90 87 97 Regions Visited 3 Branch Regions 2 Pre-discovered Areas 2 | . 1 1 . Known Exits Taken 2 | . 1 1 . Unknown Exits Taken 1 | 1 . . . Scrap Searched 7 | . . 7 . Spaces Dug 8 | . 4 4 . Terrain Destroyed 15 | . 4 11 . Melee 8 | . 4 4 . Projectile . | . . . . AOE 7 | . . 7 . Terrain Rammed . | . . . . Walls Destroyed . | . . . . Machines Disabled . | . . . . Actions | -11 -10 -10 -9 --------- Run | Yrd Mat Sub Rec Total 3675 | 20 991 2097 567 Wait 143 | . 88 41 14 Move 3220 | 11 783 1885 541 Hop . | . . . . Pick Up 55 | . 23 30 2 Fast Attach 13 | 1 4 8 . Attach 13 | . 5 7 1 Detach 10 | . 2 8 . Swap 33 | 3 9 19 2 Drop 61 | 3 15 38 5 Fire 64 | 2 51 9 2 Melee 57 | . 10 47 . Ram . | . . . . Kick . | . . . . Crush 1 | . 1 . . Escape Stasis . | . . . . Rewire . | . . . . Trap . | . . . . Miscellaneous 5 | . . 5 . Route ------- -11/Scrapyard -10/Materials (discovered 5 exits: *Mat x3 / [*Min] / *Sub) -10/Subcaves (discovered 3 exits: *Mat x2 / *Rec) -9/Recycling (discovered 1 exit: *Fac) History --------- Turn | Location | Event 13 | -11/Scrapyard | Discovered new exit (range 3) 32 | -11/Scrapyard | Entered Materials 316 | -10/Materials | Build established: Mutant 360 | -10/Materials | Discovered new exit (range 4) 366 | -10/Materials | Identified exit to Materials 786 | -10/Materials | Core integrity fell below 50% 835 | -10/Materials | Discovered exit to Materials (range 8) 997 | -10/Materials | Discovered exit to Materials (range 4) 1155 | -10/Materials | Discovered new exit (range 16) 1255 | -10/Materials | Learned 2 Mines zone layouts 1294 | -10/Materials | Learned Storage stockpile data 1322 | -10/Materials | Learned Storage emergency access door positions 1347 | -10/Materials | Identified exit to Subcaves 1348 | -10/Materials | Learned location of 1 exit from Recycling 1352 | -10/Materials | Learned location of Mines (-8) 1388 | -10/Materials | Learned Storage non-interactive machine intel 1393 | -10/Materials | Entered Subcaves 1394 | -10/Subcaves | Identified exit to Materials 1582 | -10/Subcaves | Visited Clippyterm 1585 | -10/Subcaves | Identified exit to Recycling 1585 | -10/Subcaves | Learned Research machine intel 2030 | -10/Subcaves | Shifting Twisted Machinery released Mak. Axe 2038 | -10/Subcaves | Shifting Twisted Machinery released Battle Rifle 2118 | -10/Subcaves | Shifting Twisted Machinery released Spk. Treads 2155 | -10/Subcaves | Shifting Twisted Machinery released Mak. Sword 2188 | -10/Subcaves | Learned location of Zion (-6) 2188 | -10/Subcaves | Met a Zionite searching for "candidates" 2522 | -10/Subcaves | Core integrity fell below 20% 3045 | -10/Subcaves | Visited 4L-MR0's lab 3062 | -10/Subcaves | Found Cargo Legs 3063 | -10/Subcaves | Attached Cargo Legs, gained temporary slots: Utility x2 3147 | -10/Subcaves | Visited triangular shrine 3155 | -10/Subcaves | Found Prototype Device 3161 | -10/Subcaves | Identified V3-11A's Pendant 3167 | -10/Subcaves | Befriended Subdweller 3198 | -10/Subcaves | Befriended Subdweller 3222 | -10/Subcaves | Befriended Subdweller 3381 | -10/Subcaves | Befriended Subdweller 3381 | -10/Subcaves | Befriended Subdweller 4063 | -10/Subcaves | Lost 3 allies 4094 | -10/Subcaves | Entered Recycling 4094 | -9/Recycling | Accompanied by 2 allies 4095 | -9/Recycling | Joined Warlord attack on 0b10 via Recycling 4095 | -9/Recycling | Identified exit to Factory 4946 | -9/Recycling | Identified exit to Scraptown 5016 | -9/Recycling | Learned Materials recycling unit intel 5067 | -9/Recycling | Scanned before Scraplab entrance 5076 | -9/Recycling | Learned 2 Materials zone layouts 5097 | -9/Recycling | Entered Scraplab 5123 | -9/Recycling | Angered Scraplab inhabitants 5124 | -9/Recycling | Found Prototype Device 5125 | -9/Recycling | Learned Materials stockpile data 5148 | -9/Recycling | Self-destructed Last Messages --------------- 05125_ >> SKIM: Stored Materials stockpile data. 05125_ YI-631(j): "Defend the Scraplab!" 05125_ 97-9GB(c) destroyed. 05128_ YI-631(j) suffers critical hit (Meltdown). 05128_ Ovr. Pulse Rifle melted. 05128_ Ovr. Titanium Leg melted. 05128_ Mak. Salvage Targeting Computer melted. 05128_ Mak. Microdissipator Network melted. 05129_ 4K-YBX(R) suffers critical hit (Burn). Prototype Device integrity failing. 05131_ Dropped Seismic Detector. 05133_ 4K-YBX(R) destroyed. 05134_ 5U-5EU(j) suffers critical hit (Destroy). 05134_ 5U-5EU(j) destroyed. 05135_ Tech Extrapolator violently self-destructs. 05137_ Critical hit (Burn: +50). Prototype Device integrity failing. 05142_ Acquired 5 matter. 05142_ Scraplab SEP disabled. 05146_ V3-11A overheating. Map ----- +----------------------------------------------------+ | ???????????????????????#?????? | | ?????????????????????#???????? | | ?#???????????????????????????? | | ??????#??????????????????????? | | ????#???#????????????????????? | | ?????????#???????????????????? | | ?????????????????????#???????# | | ????????#?????######?????????? | | ?????#????#?#?# #?????????? | | ##?#####??????# ##?###????? | | ### #??##### #### ##???? | | # #??# + #?#?? | | # #??# ### ##### #???? | | # #?## #?# #???# #???? | | # #?## #?# #???# #???? | | + #### #?######???# #???? | | # #??# #??????#####/####? | | # ####/##??##?#"" !j "#? | | # # ##????#"& !%=""#? | | # # """ #?????#" =! "#? | | #### # """ #?????#""=%[R "#? | | #??# # """ #??#??#"&% &[!"#? | | ?#?# # """ #?????#" * ""#? | | ?### # """ ##????#"X "#? | | ?#! # #?#??##" #### | | ?#!! + """ #?????# " @#"#? | | ## ! r# """ #?????# """ #? | | ### # """ #???############? | | / # """ #???????????????? | | ### # """ #???????#???????# | | #"" # #???#???????????? | | #"T # #???????????????? | | #"" # #???????????????? | | ### #######??#?#??????????? | | #?# #???#????#????????????? | | #?# #?#???????????????????? | | ### #?????????????????????? | | "## #???#??#??????????????? | | T## #?##??????????????????? | | "## #?????????????????????? | | ### #?????????????????????? | | #?# #?????????????????????? | | ##?# #????#????????????????? | | #?## #?????????????????????? | | ???# #?????#???????????????? | | #??# #?#???????????????????? | | ##?# #????????#????????????? | | #### #???#?????????????????? | | ##"" #??#?#####????????????? | | ##"Y #???? #????????????? | +----------------------------------------------------+ Best States ------------- Heat Dissipation 39 Energy Generation 15 Energy Capacity 265 Matter Stores 300 Matter Capacity 300 Sight Range 16 Robot Scan Range 14 Terrain Scan Range 16 Terrain Scan Density 10 Armor Coverage 950 Evasion (%) 55 Recoil Reduction 2 Item Schematics ----------------- None Robot Schematics ------------------ None Fabricated ------------ Nothing Alien Tech Used ----------------- None Achievements -------------- None Challenges ------------ None Game ------ Seed ThunderFlyingMatrix Manual? 0 Play Time 01:16:24 Cumulative 233.8 hours Start 2024.09.03 @ 07:13:42 End 2024.09.03 @ 19:38:37 Sessions 5 Manual Loads 0 Difficulty Rogue Special Mode None Game No. 96 Rogue 93 Adventurer 0 Explorer 3 Win Type - Total 3 Types 2/0/0/1/0/0/0/0/0 Lore% 32 Gallery% 63 Achievement% 51 Wizard Run 0 Options --------- Layout 2 ASCII 0 Keyboard 1 Movement Numpad Keybinds 0 Fullscreen 2 Font 24/Terminus Map View 76x44 Zoom Use 0% Tactical HUD 1 Map Filters NONE Filters NONE Steam 1 RUN: 29a28137-86a3-4645-97e9-eb4ffc987ff0